bitfinex-derivatives/quotes_SOLF0:USTF0_20260220
["timestamp","ask_amount","ask_price","bid_price","bid_amount"]
[1771588354780,10.52469496,83.523,83.489,10.7857]
[1771588354982,10.52469496,83.519,83.489,10.7857]
[1771588357283,10.52469496,83.519,83.432,22.14579905]
[1771588357284,10.93259961,83.535,83.491,10.44816811]
[1771588357484,10.93259961,83.548,83.501,10.44816811]
[1771588357783,3.10103752,83.55,83.51,3.10103752]
[1771588358779,14.03363713,83.56,83.51,3.10103752]
[1771588359087,10.93259961,83.559,83.51,3.10103752]
[1771588359288,3.10103752,83.53,83.489,10.7858]
[1771588359481,3.10103752,83.53,83.49,3.10103752]
[1771588359681,3.10103752,83.53,83.486,10.44816811]
[1771588359886,3.10103752,83.53,83.49,3.10103752]
[1771588360086,10.93259961,83.539,83.49,3.10103752]
[1771588360989,3.10103752,83.53,83.486,10.44816811]
[1771588361791,3.10103752,83.5,83.453,10.44816811]
[1771588362093,3.10103752,83.5,83.46,3.10103752]
[1771588362784,3.10103752,83.52,83.471,10.44816811]
[1771588363389,3.10103752,83.52,83.48,3.10103752]
[1771588363779,10.93259961,83.519,83.471,10.44816811]
[1771588363981,10.93259961,83.519,83.425,35.94]
[1771588363982,14.03363713,83.51,83.46,3.10103752]
[1771588364177,10.93259961,83.509,83.46,3.10103752]
[1771588364789,10.93259961,83.509,83.465,10.7888]
[1771588367192,10.93259961,83.509,83.47,3.10103752]
[1771588367492,10.93259961,83.509,83.465,10.7888]
[1771588370090,10.93259961,83.509,83.46,3.10103752]
[1771588370990,3.10103752,83.5,83.454,10.7902]
[1771588371196,3.10103752,83.49,83.454,10.7902]
[1771588371494,10.93259961,83.489,83.454,10.7902]
[1771588371886,10.93259961,83.489,83.442,10.7918]
[1771588372490,3.10103752,83.5,83.451,10.44816811]
[1771588372891,10.93259961,83.499,83.451,10.44816811]
[1771588373787,10.93259961,83.499,83.457,10.7898]
[1771588375694,10.93259961,83.499,83.465,10.7888]
[1771588376598,10.93259961,83.499,83.46,3.10103752]
[1771588377895,10.93259961,83.499,83.465,10.7878]
[1771588378497,3.10103752,83.51,83.465,10.7878]
[1771588378797,10.93259961,83.509,83.465,10.7878]
[1771588380300,10.93259961,83.509,83.46,13.54920563]
[1771588380502,10.93259961,83.509,83.461,10.44816811]
[1771588380702,10.93259961,83.499,83.45,3.10103752]
[1771588380897,10.93259961,83.499,83.452,10.7894]
[1771588383098,10.93259961,83.499,83.46,13.54920563]
[1771588383602,10.93259961,83.499,83.461,10.44816811]
[1771588383801,10.93259961,83.516,83.471,10.44816811]
[1771588385604,10.93259961,83.516,83.47,3.10103752]
[1771588385605,10.98557686,83.529,83.481,10.40930356]
[1771588386505,3.10103752,83.53,83.481,10.40930356]
[1771588386506,10.98557686,83.52,83.481,10.40930356]
[1771588389802,10.98557686,83.52,83.439,21.5822]
[1771588389803,10.33650491,83.509,83.46,3.10103752]
[1771588390004,3.10103752,83.5,83.452,10.93141734]
[1771588390203,10.33650491,83.499,83.452,10.93141734]
[1771588390710,10.33650491,83.499,83.46,10.7883]
[1771588391304,3.10103752,83.49,83.452,10.93141734]
[1771588391810,10.33650491,83.495,83.452,10.93141734]
[1771588392807,10.33650491,83.495,83.454,10.7892]
[1771588393111,10.33650491,83.495,83.452,10.93141734]
[1771588393705,10.33650491,83.495,83.461,10.7882]
[1771588398413,10.33650491,83.509,83.463,10.93141734]
[1771588404017,10.33650491,83.509,83.464,10.93141734]
[1771588404510,13.87999759,83.52,83.471,10.93141734]
[1771588405417,10.781,83.518,83.473,10.93141734]
[1771588406219,10.33650491,83.493,83.439,10.93141734]
[1771588406515,10.33650491,83.479,83.43,3.09919759]
[1771588406712,10.33650491,83.479,83.431,10.93141734]
[1771588406915,8.68683359,83.503,83.461,10.93141734]
[1771588407217,10.33650491,83.506,83.461,10.93141734]
[1771588407618,10.7827,83.504,83.461,10.93141734]
[1771588407917,10.33650491,83.499,83.45,3.09919759]
[1771588408117,10.33650491,83.499,83.451,10.93141734]
[1771588408709,10.33650491,83.499,83.46,3.09919759]
[1771588413126,10.33650491,83.499,83.461,10.93141734]
[1771588415023,10.33650491,83.478,83.425,10.93141734]
[1771588415224,3.09919759,83.46,83.41,3.09919759]
[1771588415427,3.09919759,83.46,83.377,22.14579905]
[1771588415428,3.09919759,83.45,83.408,10.93141734]
[1771588415728,10.33650491,83.459,83.408,10.93141734]
[1771588415729,10.33650491,83.459,83.41,3.09919759]
[1771588416030,10.33650491,83.473,83.43,3.09919759]
[1771588416322,10.33650491,83.489,83.441,10.93141734]
[1771588417219,10.33650491,83.489,83.45,3.09919759]
[1771588417420,10.33650491,83.489,83.45,13.75331647]
[1771588417817,10.33650491,83.489,83.451,10.65411888]
[1771588422025,3.09919759,83.5,83.461,10.65411888]
[1771588422328,10.55489676,83.501,83.461,10.65411888]
[1771588423218,8.68750397,83.511,83.462,10.7881]
[1771588423419,10.55489676,83.519,83.471,10.65411888]
[1771588423727,10.55489676,83.519,83.47,3.09919759]
[1771588423728,10.55489676,83.519,83.48,13.75331647]
[1771588424725,10.55489676,83.519,83.48,10.65411888]
[1771588427533,10.55489676,83.519,83.417,35.94]
[1771588427534,10.55489676,83.509,83.46,3.09919759]
[1771588428229,3.09919759,83.52,83.471,10.65411888]
[1771588429731,10.55489676,83.522,83.481,10.65411888]
[1771588429935,21.83911707,83.536,83.423,167.8947]
[1771588429936,10.55489676,83.535,83.491,10.65411888]
[1771588431834,10.55489676,83.535,83.5,3.09919759]
[1771588432438,10.55489676,83.535,83.492,10.65411888]
[1771588432932,10.55489676,83.535,83.495,10.7838]
[1771588433941,10.7768,83.55,83.452,22.14579905]
[1771588433942,8.68808589,83.549,83.511,10.65411888]
[1771588434238,3.09919759,83.54,83.498,10.65411888]
[1771588434439,3.09919759,83.54,83.49,3.09919759]
[1771588434440,3.09919759,83.53,83.486,10.65411888]
[1771588434630,10.7778,83.543,83.486,10.65411888]
[1771588434631,3.09919759,83.52,83.486,10.65411888]
[1771588434837,3.09919759,83.52,83.48,10.7857]
[1771588434838,13.65409435,83.52,83.48,10.7857]
[1771588435340,10.55489676,83.519,83.48,10.7857]
[1771588438147,3.09919759,83.53,83.481,10.65411888]
[1771588439141,3.09919759,83.53,83.49,3.09919759]
[1771588439541,3.09919759,83.53,83.486,10.785]
[1771588439542,10.55489676,83.529,83.486,10.785]
[1771588440545,10.55489676,83.529,83.486,21.43911888]
[1771588441045,10.55489676,83.529,83.493,10.7841]
[1771588441545,10.55489676,83.529,83.486,10.65411888]
[1771588443643,10.55489676,83.519,83.47,13.75331647]
[1771588443850,3.09919759,83.5,83.467,10.7874]
[1771588444349,10.55489676,83.506,83.467,10.7874]
[1771588446842,3.09919759,83.52,83.471,10.83136586]
[1771588447050,3.09919759,83.53,83.481,10.83136586]
[1771588447260,3.09919759,83.53,83.48,3.09919759]
[1771588447261,11.03467321,83.534,83.492,10.77881527]
[1771588447546,10.13133602,83.547,83.5,3.09919759]
[1771588447747,3.09919759,83.54,83.492,10.77881527]
[1771588448651,3.09919759,83.54,83.495,10.7838]
[1771588448953,3.09919759,83.56,83.511,10.77881527]
[1771588449155,13.23053361,83.56,83.511,10.77881527]
[1771588449453,10.13133602,83.559,83.511,10.77881527]
[1771588450352,10.13133602,83.559,83.52,3.09919759]
[1771588451247,3.09919759,83.55,83.51,3.09919759]
[1771588451452,10.13133602,83.549,83.501,10.7831]
[1771588451956,10.13133602,83.549,83.51,3.09919759]
[1771588453049,3.09919759,83.56,83.511,10.77881527]
[1771588453651,3.09919759,83.56,83.515,10.7813]
[1771588454656,13.23053361,83.56,83.515,10.7813]
[1771588455955,10.13133602,83.559,83.515,10.7813]
[1771588456350,10.7744,83.569,83.516,10.77881527]
[1771588456658,10.7744,83.569,83.521,10.77881527]
[1771588456659,10.13133602,83.568,83.521,10.77881527]
[1771588457359,10.13133602,83.568,83.53,3.09919759]
[1771588458749,20.90333602,83.588,83.532,10.77881527]
[1771588459050,167.4047,83.668,83.54,3.09919759]
[1771588459051,10.13133602,83.587,83.54,3.09919759]
[1771588459253,10.13133602,83.587,83.541,10.77881527]
[1771588459453,3.09919759,83.58,83.541,10.77881527]
[1771588460355,3.09919759,83.57,83.532,10.77881527]
[1771588460857,3.09919759,83.57,83.534,10.7788]
[1771588461058,10.7732,83.579,83.534,10.7788]
[1771588461259,10.13133602,83.578,83.534,10.7788]
[1771588461459,10.7732,83.579,83.538,10.77881527]
[1771588462860,3.09416896,83.57,83.525,10.77881527]
[1771588463057,10.13133602,83.569,83.525,10.77881527]
[1771588463755,20.90573602,83.569,83.525,10.77881527]
[1771588464256,10.13133602,83.569,83.527,10.77881527]
[1771588464463,10.13133602,83.582,83.54,3.09416896]
[1771588464661,3.09416896,83.58,83.531,10.77881527]
[1771588464862,10.13133602,83.579,83.531,10.77881527]
[1771588465760,10.13133602,83.579,83.534,10.77881527]
[1771588466162,10.13133602,83.579,83.501,21.566]
[1771588466163,10.13133602,83.579,83.54,13.87298423]
[1771588467658,10.13133602,83.579,83.552,10.7765]
[1771588467864,3.09416896,83.59,83.552,10.7765]
[1771588468057,13.22550498,83.59,83.552,10.7765]
[1771588468563,10.13133602,83.589,83.552,10.7765]
[1771588470057,10.13133602,83.589,83.542,10.7778]
[1771588470663,3.09416896,83.57,83.522,10.77881527]
[1771588470868,3.09416896,83.56,83.522,10.77881527]
[1771588471063,10.13133602,83.569,83.522,10.77881527]
[1771588471864,10.13133602,83.569,83.525,21.55881527]
[1771588474370,10.7746,83.568,83.525,21.55881527]
[1771588474566,10.7746,83.568,83.526,10.77881527]
[1771588474759,10.13133602,83.547,83.501,10.7831]
[1771588474965,3.09416896,83.54,83.5,2.0]
[1771588475268,3.09416896,83.53,83.5,2.0]
[1771588475569,3.09416896,83.55,83.501,10.77881527]
[1771588475764,13.22550498,83.55,83.501,10.77881527]
[1771588476069,10.13133602,83.529,83.5,2.0]
[1771588476968,3.09416896,83.54,83.5,2.0]
[1771588477162,3.09416896,83.54,83.5,15.19747563]
[1771588478065,3.09416896,83.54,83.501,10.10330667]
[1771588480365,10.78496352,83.544,83.501,10.10330667]
[1771588480569,3.09416896,83.55,83.501,10.10330667]
[1771588480870,10.78496352,83.549,83.501,10.10330667]
[1771588481559,10.78496352,83.549,83.513,10.7815]
[1771588481760,3.09416896,83.56,83.514,10.10330667]
[1771588482065,3.09416896,83.56,83.528,10.7796]
[1771588483370,3.09416896,83.56,83.52,20.88390667]
[1771588484567,10.78496352,83.562,83.52,20.88390667]
[1771588484769,3.09416896,83.56,83.52,20.88390667]
[1771588486063,10.78496352,83.562,83.52,20.88390667]
[1771588486269,3.09416896,83.55,83.52,20.88390667]
[1771588486866,3.09416896,83.55,83.52,10.10330667]
[1771588488774,3.09416896,83.56,83.52,10.10330667]
[1771588490175,13.87913248,83.56,83.52,10.10330667]
[1771588491377,10.78496352,83.559,83.52,10.10330667]
[1771588492077,10.78496352,83.559,83.511,10.7818]
[1771588492078,10.7767,83.552,83.512,10.10330667]
[1771588494871,10.78496352,83.539,83.493,10.7841]
[1771588495180,10.78496352,83.539,83.494,10.10330667]
[1771588495579,21.56066352,83.559,83.514,10.10330667]
[1771588495972,10.78496352,83.559,83.521,10.10330667]
[1771588496173,10.78496352,83.559,83.482,22.14579905]
[1771588496174,10.7747,83.566,83.531,10.10330667]
[1771588497173,10.7732,83.578,83.532,10.7791]
[1771588497373,10.7732,83.578,83.533,10.10330667]
[1771588497581,3.09416896,83.56,83.518,10.10330667]
[1771588497982,3.09416896,83.56,83.52,3.09416896]
[1771588498184,3.09416896,83.56,83.521,10.10330667]
[1771588499784,10.7757,83.559,83.521,10.10330667]
[1771588500978,21.56066352,83.559,83.521,10.10330667]
[1771588501185,10.78496352,83.558,83.521,10.10330667]
[1771588504286,11.01534092,83.59,83.541,10.10330667]
[1771588504287,10.78496352,83.584,83.541,10.10330667]
[1771588505689,10.7726,83.583,83.542,10.7778]
[1771588505989,10.31338048,83.582,83.541,10.10330667]
[1771588506386,11.01534092,83.619,83.541,10.10330667]
[1771588506387,10.31338048,83.579,83.541,10.10330667]
[1771588508088,10.31338048,83.579,83.533,10.7789]
[1771588508788,10.31338048,83.579,83.542,10.7778]
[1771588509583,8.71686801,83.591,83.56,3.09416896]
[1771588509782,10.42711139,83.608,83.57,3.09416896]
[1771588511295,10.42711139,83.589,83.545,10.24742193]
[1771588511495,3.09416896,83.58,83.545,10.24742193]
[1771588511891,10.42711139,83.579,83.531,10.24742193]
[1771588512596,10.42711139,83.577,83.531,10.24742193]
[1771588513387,10.42711139,83.577,83.536,10.24742193]
[1771588513792,10.42711139,83.577,83.537,10.7784]
[1771588513992,10.42711139,83.589,83.55,13.34159089]
[1771588514495,10.42711139,83.589,83.55,10.24742193]
[1771588517901,10.42711139,83.582,83.538,10.24742193]
[1771588518990,10.42711139,83.582,83.54,10.24742193]
[1771588521401,10.7728,83.581,83.54,10.24742193]
[1771588521699,10.42711139,83.58,83.54,10.24742193]
[1771588522295,10.7718,83.589,83.54,10.24742193]
[1771588522495,21.19891139,83.589,83.54,10.24742193]
[1771588523100,10.7721,83.587,83.54,10.24742193]
[1771588523298,21.19921139,83.587,83.54,10.24742193]
[1771588524500,10.771,83.596,83.543,10.24742193]
[1771588524696,10.42711139,83.599,83.543,10.24742193]
[1771588524895,10.42711139,83.614,83.543,10.24742193]
[1771588525298,10.42711139,83.614,83.54,9.20693206]
[1771588525299,10.42711139,83.613,83.559,10.24742193]
[1771588525496,10.42711139,83.613,83.54,9.20693206]
[1771588525697,8.72676336,83.612,83.545,10.24742193]
[1771588525902,10.42711139,83.599,83.545,10.24742193]
[1771588526706,10.7717,83.59,83.545,10.24742193]
[1771588528303,9.20693206,83.6,83.528,10.24742193]
[1771588528304,10.42711139,83.583,83.528,10.24742193]
[1771588528917,10.42711139,83.583,83.541,10.24742193]
[1771588529800,10.42711139,83.583,83.544,10.24742193]
[1771588530410,10.7712,83.594,83.544,10.24742193]
[1771588530619,21.19831139,83.594,83.544,10.24742193]
[1771588531417,10.42711139,83.593,83.544,10.24742193]
[1771588532319,10.7715,83.592,83.544,10.24742193]
[1771588532523,10.42711139,83.591,83.544,10.24742193]
[1771588533018,10.42711139,83.586,83.544,10.24742193]
[1771588533516,10.42711139,83.586,83.532,21.02642193]
[1771588533813,9.20693206,83.6,83.459,22.14579905]
[1771588533814,10.42711139,83.559,83.459,22.14579905]
[1771588534018,10.42711139,83.557,83.488,10.24742193]
[1771588534220,10.42711139,83.555,83.488,10.24742193]
[1771588534421,10.42711139,83.555,83.503,10.24742193]
[1771588535119,10.42711139,83.568,83.517,10.24742193]
[1771588535922,10.42711139,83.568,83.53,3.09442043]
[1771588537422,10.42711139,83.568,83.528,10.24742193]
[1771588543223,10.72823891,83.566,83.511,10.49323864]
[1771588543826,9.21000282,83.57,83.511,10.49323864]
[1771588543827,10.72823891,83.552,83.511,10.49323864]
[1771588544928,10.72823891,83.55,83.511,10.49323864]
[1771588545121,10.72823891,83.55,83.491,10.49323864]
[1771588545319,10.72823891,83.549,83.491,10.49323864]
[1771588546123,10.7783,83.539,83.491,10.49323864]
[1771588546325,10.72823891,83.538,83.491,10.49323864]
[1771588547024,10.72823891,83.538,83.493,10.49323864]
[1771588550232,10.72823891,83.538,83.494,10.7839]
[1771588550432,10.72823891,83.538,83.495,10.49323864]
[1771588550931,10.72823891,83.551,83.509,10.49323864]
[1771588552931,10.72823891,83.566,83.511,10.49323864]
[1771588553135,10.72823891,83.591,83.511,10.49323864]
[1771588554633,10.72823891,83.59,83.542,10.7778]
[1771588557626,10.72823891,83.588,83.534,21.27203864]
[1771588557831,10.72823891,83.587,83.511,10.49323864]
[1771588558132,10.72823891,83.585,83.527,10.49323864]
[1771588559030,10.72823891,83.582,83.527,10.49323864]
[1771588559731,10.72823891,83.582,83.537,10.49323864]
[1771588561327,10.72823891,83.596,83.54,10.49323864]
[1771588562038,3.09316009,83.59,83.541,10.49323864]
[1771588562536,13.86476009,83.59,83.542,10.7777]
[1771588562730,13.86476009,83.59,83.543,10.49323864]
[1771588564233,3.09316009,83.6,83.561,10.49323864]
[1771588565435,10.7692,83.609,83.561,10.49323864]
[1771588565640,10.7692,83.609,83.57,3.09316009]
[1771588569736,3.09316009,83.61,83.57,3.09316009]
[1771588570940,13.60328423,83.61,83.57,3.09316009]
[1771588571441,24.37238423,83.61,83.57,3.09316009]
[1771588571641,24.37238423,83.61,83.563,10.7751]
[1771588571840,10.51012414,83.609,83.564,10.41106212]
[1771588572337,10.51012414,83.609,83.519,21.5616]
[1771588572338,10.51012414,83.599,83.556,10.41106212]
[1771588573241,10.51012414,83.589,83.548,10.41106212]
[1771588573638,3.09316009,83.58,83.548,10.41106212]
[1771588573841,3.09316009,83.58,83.54,3.09316009]
[1771588574731,10.51012414,83.579,83.537,10.7785]
[1771588574943,3.09316009,83.57,83.536,10.41106212]
[1771588576343,10.51012414,83.578,83.536,10.41106212]
[1771588579345,3.09316009,83.57,83.536,10.41106212]
[1771588579647,3.09316009,83.57,83.53,3.09316009]
[1771588579648,10.51012414,83.569,83.53,3.09316009]
[1771588579947,10.51012414,83.569,83.525,10.41106212]
[1771588580848,21.28472414,83.568,83.525,10.41106212]
[1771588581047,10.51012414,83.568,83.525,10.41106212]
[1771588581347,21.28462414,83.568,83.525,10.41106212]
[1771588582347,3.09316009,83.58,83.534,10.41106212]
[1771588583245,3.09316009,83.59,83.547,10.41106212]
[1771588583846,3.09316009,83.59,83.497,43.71289905]
[1771588583847,10.51012414,83.595,83.552,10.41106212]
[1771588584044,10.7706,83.599,83.552,10.41106212]
[1771588584251,3.09316009,83.6,83.552,10.41106212]
[1771588585249,3.09316009,83.6,83.562,10.41106212]
[1771588585449,10.51012414,83.607,83.562,10.41106212]
[1771588585847,10.51012414,83.607,83.563,10.7751]
[1771588586046,10.51012414,83.607,83.563,21.18616212]
[1771588586248,10.51012414,83.607,83.564,10.41106212]
[1771588586444,10.51012414,83.619,83.573,10.7738]
[1771588586749,10.51012414,83.619,83.573,21.18486212]
[1771588586945,3.09195062,83.61,83.573,10.41106212]
[1771588591155,3.09195062,83.61,83.575,10.41106212]
[1771588591450,10.51012414,83.619,83.575,10.41106212]
[1771588593045,10.51012414,83.619,83.577,10.7733]
[1771588593246,10.51012414,83.619,83.578,10.41106212]
[1771588593451,3.09195062,83.63,83.581,10.41106212]
[1771588593650,10.51012414,83.644,83.595,10.41106212]
[1771588593849,3.09195062,83.64,83.601,10.41106212]
[1771588594454,10.51012414,83.644,83.601,10.41106212]
[1771588594650,3.09195062,83.64,83.601,10.41106212]
[1771588595360,3.09195062,83.65,83.603,10.41106212]
[1771588595664,10.51012414,83.656,83.611,10.41106212]
[1771588596657,10.51012414,83.656,83.613,10.41106212]
[1771588596858,10.51012414,83.668,83.621,10.41106212]
[1771588597061,10.51012414,83.668,83.63,3.09195062]
[1771588597356,10.51012414,83.668,83.631,10.95642398]
[1771588598456,3.09195062,83.67,83.632,10.7662]
[1771588598656,3.09195062,83.68,83.633,10.95642398]
[1771588599353,10.74350418,83.669,83.58,10.95642398]
[1771588599556,3.09195062,83.66,83.619,10.95642398]
[1771588600154,3.09195062,83.65,83.619,10.95642398]
[1771588601361,3.09195062,83.65,83.61,3.09195062]
[1771588601362,13.8354548,83.65,83.606,10.95642398]
[1771588601559,3.09195062,83.64,83.606,10.95642398]
[1771588605058,3.09195062,83.64,83.603,10.7699]
[1771588605059,3.09195062,83.63,83.591,10.95642398]
[1771588605661,3.09195062,83.62,83.591,10.95642398]
[1771588606770,3.09195062,83.62,83.594,10.771]
[1771588606958,3.09195062,83.7,83.611,10.95642398]
[1771588607158,10.74350418,83.708,83.67,3.09195062]
[1771588607762,10.74350418,83.708,83.66,3.09195062]
[1771588608369,10.74350418,83.708,83.67,3.09195062]
[1771588610866,10.74350418,83.708,83.65,14.0483746]
[1771588611270,3.09195062,83.7,83.65,14.0483746]
[1771588611472,10.74350418,83.693,83.64,3.09195062]
[1771588611668,10.74350418,83.689,83.64,3.09195062]
[1771588612270,10.74350418,83.689,83.65,3.09195062]
[1771588612472,10.74350418,83.683,83.64,3.09195062]
[1771588613667,10.74350418,83.683,83.571,21.5482]
[1771588613668,10.74350418,83.679,83.62,3.09195062]
[1771588613968,10.74350418,83.679,83.621,10.95642398]
[1771588614167,10.74350418,83.677,83.63,3.09195062]
[1771588614672,10.74350418,83.677,83.64,3.09195062]
[1771588615871,10.74350418,83.677,83.621,10.95642398]
[1771588616265,10.74350418,83.675,83.621,10.95642398]
[1771588617675,10.7609,83.674,83.621,10.95642398]
[1771588618971,10.7614,83.67,83.621,10.95642398]
[1771588619178,10.74350418,83.669,83.61,9.18745123]
[1771588619478,10.74350418,83.669,83.611,10.95642398]
[1771588620479,10.74350418,83.669,83.615,10.95642398]
[1771588620979,10.74350418,83.7,83.631,10.95642398]
[1771588621479,10.74350418,83.7,83.63,9.18745123]
[1771588621480,10.74350418,83.7,83.639,10.95642398]
[1771588622074,10.7594,83.686,83.639,10.95642398]
[1771588622378,10.74350418,83.7,83.639,10.95642398]
[1771588622379,10.74350418,83.685,83.639,10.95642398]
[1771588623072,178.30119596,83.735,83.6,9.18745123]
[1771588623073,10.74350418,83.716,83.65,9.18745123]
[1771588623268,10.74350418,83.716,83.651,10.95642398]
[1771588624072,10.7575,83.7,83.651,10.95642398]
[1771588624787,10.7575,83.7,83.652,10.7636]
[1771588624991,10.7564,83.709,83.653,10.87015574]
[1771588625789,10.7564,83.709,83.65,9.18745123]
[1771588625790,10.74350418,83.716,83.656,10.87015574]
[1771588626584,10.7542,83.726,83.667,10.87015574]
[1771588626890,10.41411941,83.73,83.671,10.87015574]
[1771588627886,10.85871152,83.727,83.672,10.8471991]
[1771588628082,10.85871152,83.727,83.66,9.18745123]
[1771588628591,10.85871152,83.711,83.657,10.8471991]
[1771588629687,10.757,83.704,83.657,10.8471991]
[1771588630185,10.85871152,83.711,83.666,10.8471991]
[1771588630393,10.85871152,83.725,83.666,10.8471991]
[1771588631797,10.7557,83.715,83.666,10.8471991]
[1771588632590,10.85871152,83.725,83.667,10.8471991]
[1771588634807,10.85871152,83.725,83.674,10.8471991]
[1771588635200,10.85871152,83.715,83.664,10.762]
[1771588635408,10.85871152,83.715,83.665,10.8471991]
[1771588635897,10.85871152,83.712,83.665,10.8471991]
[1771588637506,10.85871152,83.705,83.652,10.8471991]
[1771588637906,10.85871152,83.705,83.66,3.08479149]
[1771588638709,10.757,83.704,83.66,3.08479149]
[1771588643407,10.85871152,83.699,83.66,3.08479149]
[1771588643605,10.85871152,83.699,83.642,10.7648]
[1771588643606,10.85871152,83.699,83.65,3.08479149]
[1771588644704,10.85871152,83.695,83.65,3.08479149]
[1771588645212,10.85871152,83.689,83.64,3.08479149]
[1771588645910,10.85871152,83.689,83.64,3.08639618]
[1771588646308,10.85871152,83.688,83.641,10.765]
[1771588646707,10.85871152,83.688,83.64,3.08639618]
[1771588646912,10.85871152,83.679,83.631,10.7663]
[1771588647410,19.72473363,83.711,83.62,10.8471991]
[1771588647411,10.85871152,83.669,83.62,13.93359528]
[1771588648711,10.85871152,83.669,83.622,10.7675]
[1771588649812,10.85871152,83.669,83.63,3.08639618]
[1771588650111,10.85871152,83.669,83.64,3.08639618]
[1771588650709,10.85871152,83.669,83.64,13.85149618]
[1771588651310,10.85871152,83.669,83.64,3.08639618]
[1771588651512,10.85871152,83.669,83.63,3.08639618]
[1771588652915,10.85871152,83.669,83.63,13.85289618]
[1771588654307,10.85871152,83.669,83.612,26.46623446]
[1771588654308,10.85871152,83.669,83.623,10.8471991]
[1771588654716,10.85871152,83.669,83.63,3.08639618]
[1771588654916,10.85871152,83.669,83.623,10.8471991]
[1771588655117,10.85871152,83.669,83.63,3.08639618]
[1771588656112,10.85871152,83.665,83.62,3.08639618]
[1771588657018,10.7631,83.656,83.62,3.08639618]
[1771588657410,13.56241822,83.68,83.63,14.28319153]
[1771588657608,13.56241822,83.68,83.573,35.94]
[1771588657609,10.47602204,83.68,83.65,3.08639618]
[1771588657915,10.7587,83.691,83.641,10.7649]
[1771588657916,10.7587,83.691,83.66,3.08639618]
[1771588661110,10.47602204,83.683,83.65,3.08639618]
[1771588665425,10.47602204,83.683,83.64,3.08639618]
[1771588665628,10.47602204,83.683,83.64,6.08639618]
[1771588666027,10.47602204,83.683,83.64,3.0]
[1771588666226,10.47602204,83.683,83.64,6.08639618]
[1771588666628,10.47602204,83.683,83.64,17.28319153]
[1771588666828,11.08759498,83.719,83.64,17.28319153]
[1771588666829,10.47602204,83.679,83.64,3.0]
[1771588667123,10.47602204,83.669,83.64,3.0]
[1771588667727,10.47602204,83.669,83.621,11.19679535]
[1771588667728,10.7626,83.661,83.621,11.19679535]
[1771588668027,3.08639618,83.67,83.62,3.08639618]
[1771588668028,10.47602204,83.66,83.62,3.08639618]
[1771588668227,10.47602204,83.657,83.62,3.08639618]
[1771588669723,10.7632,83.656,83.62,3.08639618]
[1771588669924,21.23922204,83.656,83.62,3.08639618]
[1771588670824,3.08639618,83.66,83.607,21.96609535]
[1771588670825,10.47602204,83.653,83.61,14.28319153]
[1771588671027,10.47602204,83.653,83.61,11.19679535]
[1771588671028,3.08639618,83.65,83.61,11.19679535]
[1771588671225,10.47602204,83.653,83.61,14.28319153]
[1771588672926,10.764,83.65,83.61,14.28319153]
[1771588675633,11.08759498,83.685,83.639,11.19679535]
[1771588675634,10.47602204,83.684,83.639,11.19679535]
[1771588675830,10.47602204,83.684,83.65,3.08639618]
[1771588676126,10.47602204,83.684,83.64,11.19679535]
[1771588676127,10.47602204,83.684,83.64,14.28319153]
[1771588676325,21.5082,83.727,83.591,21.5431]
[1771588676326,3.08639618,83.66,83.62,3.08639618]
[1771588676522,3.08639618,83.66,83.609,11.19679535]
[1771588676523,10.47602204,83.659,83.61,3.08639618]
[1771588677833,10.47602204,83.659,83.612,10.7688]
[1771588678333,10.47602204,83.649,83.61,3.08639618]
[1771588678534,10.47602204,83.649,83.609,11.19679535]
[1771588679429,10.47602204,83.649,83.61,3.08639618]
[1771588679728,10.47602204,83.649,83.612,10.7688]
[1771588680130,10.47602204,83.649,83.61,3.08639618]
[1771588680131,10.47602204,83.669,83.62,3.08639618]
[1771588680725,3.08639618,83.65,83.6,3.08639618]
[1771588680930,10.47602204,83.649,83.6,3.08639618]
[1771588681936,10.47602204,83.649,83.604,10.7697]
[1771588684240,10.47602204,83.649,83.6,3.08639618]
[1771588684737,3.08639618,83.64,83.6,3.08639618]
[1771588685740,3.08639618,83.64,83.601,10.7702]
[1771588687442,3.08639618,83.64,83.602,10.70447473]
[1771588691047,3.08639618,83.64,83.603,10.7699]
[1771588693847,3.08639618,83.64,83.609,10.7691]
[1771588694642,3.08639618,83.65,83.624,10.7672]
[1771588694845,14.78246628,83.699,83.624,10.7672]
[1771588694846,3.08639618,83.67,83.624,10.70447473]
[1771588695444,3.08639618,83.67,83.626,21.47137473]
[1771588695660,14.04156579,83.67,83.627,10.70447473]
[1771588695857,10.95516961,83.669,83.627,10.70447473]
[1771588696363,11.08759498,83.711,83.614,10.7685]
[1771588696364,14.04156579,83.66,83.614,10.7685]
[1771588696569,10.95516961,83.649,83.614,10.7685]
[1771588699375,10.95516961,83.639,83.591,10.70447473]
[1771588699558,3.08639618,83.64,83.591,10.70447473]
[1771588699760,10.95516961,83.669,83.63,3.08639618]
[1771588699960,21.71676961,83.668,83.63,3.08639618]
[1771588700161,10.95516961,83.667,83.63,3.08639618]
[1771588700359,10.95516961,83.667,83.625,10.70447473]